{"text_format":"3","workbook":"xlsx","n_sheets":4,"sheets":["Début","Rapport sur le budget mensuel","Dépenses mensuelles","Données supplémentaires"],"not_rendered":{"charts":1,"defined_names":4,"pivot_tables":2},"read":"whole","date_system":"1900"}

{"sheet":"Début","index":0,"n_rows":8,"n_cols":2,"rows_kept":8}
[null,"À PROPOS DE CE MODÈLE"]
[null,"Utilisez ce classeur pour faire le suivi vos dépenses mensuelles et créer un Budget familial."]
[null,"Entrez le revenu estimé et réel issu de différentes sources dans la feuille de calcul Rapport sur le budget mensuel, ainsi que les montants estimés et reels  dépensés dans les diverses catégories de la feuille de calcul dépenses mensuelles."]
[null,"Le solde estimé et réel ainsi que l'écart sont automatiquement calculés, le récapitulatif du budget ainsi que le graphique de vue d’ensemble du budget sont mis à jour dans la feuille de calcul Rapport sur le budget mensuel."]
[null,"Vous pouvez modifier ou entrer la nouvelle catégorie dans un tableau d’une feuille de calcul de données supplémentaires."]
[null,"Remarque : "]
[null,"Des instructions supplémentaires ont été configurées dans la colonne A dans la feuille de calcul RAPPORT SUR LE BUDGET MENSUEL et dans la cellule A1 dans les feuilles de calcul  DÉPENSES MENSUELLES et DONNÉES SUPPLÉMENTAIRES. Ce texte a été intentionnellement masqué. Pour supprimer le texte, sélectionnez la colonne A ou la cellule A1, puis sélectionnez Supprimer. Pour afficher le texte, sélectionnez la colonne A ou la cellule A1, puis changez la couleur de la police."]
[null,"Pour en savoir plus sur un tableau, appuyez sur Maj puis F10 à l’intérieur du tableau, sélectionnez l’option TABLE, puis TEXTE DE REMPLACEMENT. Pour les tableaux croisés dynamiques, appuyez sur Maj puis F10 à l’intérieur du tableau, sélectionnez OPTIONS DU TABLEAU CROISÉ DYNAMIQUE, puis TEXTE DE REMPLACEMENT."]

{"sheet":"Rapport sur le budget mensuel","index":1,"n_rows":34,"n_cols":14,"rows_kept":34,"merged":[[0,1,0,4],[0,5,0,7],[0,12,0,13],[1,9,5,13],[2,2,2,5],[3,2,3,5],[4,2,4,5],[7,1,10,1],[7,5,10,5],[7,6,10,6],[8,9,31,9],[12,1,16,1],[12,5,16,5],[12,6,16,6],[19,1,34,6]]}
["Créez un Rapport sur le Budget Mensuel dans ce classeur. Le titre de cette feuille de calcul figure dans la cellule de droite et le conseil dans la cellule J1. Sélectionnez la cellule F1 pour accéder à la feuille de calcul Dépenses Mensuelles. Des instructions utiles sur l’utilisation de cette feuille de calcul sont disponibles dans les cellules de cette colonne.","Vue d’ensemble du budget",{"$nulls":3},"Dépenses mensuelles",{"$nulls":3},"Récapitulatif du budget",null,null,"Germe de blé de couleur verte dans cette cellule."]
["L’étiquette Solde se trouve dans la cellule de droite. Les segments de tableau croisé dynamique pour filtrer des données de tableau sont dans les cellules J2 à N6. Pour sélectionner plusieurs catégories, maintenez la touche Ctrl enfoncée.","Solde",{"$nulls":7},"Le segment par catégorie pour filtrer le tableau croisé dynamique ci-dessous par la catégorie sélectionnée se trouve dans cette cellule."]
["L’étiquette Solde Estimé se trouve dans la cellule de droite. Le Solde Estimé est calculé automatiquement dans la cellule G3.","Solde Estimé","(Estimé moins dépenses)",{"$nulls":3},{"$f":"D17-SUM(DétailsBudget[Coût prévu])","v":{"v":1585,"d":"1,585 $"}}]
["L’étiquette Solde Réel se trouve dans la cellule de droite. Le solde Réel est calculé automatiquement dans la cellule G4.","Solde Réel","(Réel moins dépenses)",{"$nulls":3},{"$f":"D11-SUM(DétailsBudget[Coût réel])","v":{"v":1740,"d":"1,740 $"}}]
["L’étiquette Écart se trouve dans la cellule de droite. L’écart est calculé automatiquement dans la cellule G5. L’instruction suivante figure dans la cellule A7.","Écart","(Réel moins revenu estimé)",{"$nulls":3},{"$f":"G4-G3","v":{"v":155,"d":"155 $"}}]
[]
["L’étiquette Recettes est dans la cellule située à droite, l’étiquette de Dépenses dans la cellule F7 et Conseil pour Récapitulatif du budget dans la cellule J7.","Recettes",{"$nulls":3},"Dépenses",{"$nulls":3},"Sélectionnez le Tableau Croisé Dynamique ci-dessous, puis Actualiser  dans l’onglet analyse pour mettre à jour."]
["L’étiquette Recettes Réel figure dans la cellule de droite, l’étiquette Estimé en cellule F8. Tapez Revenu 1 dans la cellule D8. Les dépenses Estimées sont automatiquement calculées dans la cellule G8.","RÉEL","Revenu 1",{"v":5800,"d":"5,800 $"},null,"RÉEL",{"$f":"SUM(DétailsBudget[Coût réel])","v":{"v":7860,"d":"7,860 $"}}]
["Tapez Revenu 2 dans la cellule D9. L’image se trouve dans la cellule J9. Le tableau croisé dynamique commence dans la cellule K9. Pour mettre à jour le tableau croisé dynamique, sélectionnez Actualiser dans l’onglet analyse.",null,"Revenu 2",{"v":2300,"d":"2,300 $"},{"$nulls":5},"L’image figure dans cette cellule.","Catégorie","Coût prévu ","Coût réel ","Écart "]
["Entrez le Revenu Supplémentaire dans la cellule D10.",null,"Revenu supplémentaire",{"v":1500,"d":"1,500 $"},{"$nulls":6},"Animaux",{"v":170,"d":"170 $"},{"v":100,"d":"100 $"},{"v":70,"d":"70 $"}]
["L’étiquette Revenu Total des recettes la cellule C11 et celle des Revenus Totaux est automatiquement calculée dans la cellule D11. L’instruction suivante figure dans la cellule A13.",null,"Total des recettes",{"$f":"SUM(D8:D10)","v":{"v":9600,"d":"9,600 $"}}]
[{"$nulls":10},"Assurance",{"v":900,"d":"900 $"},{"v":900,"d":"900 $"},{"v":0,"d":"0 $"}]
["L’étiquette Revenu Estimé figure dans la cellule de droite, l’étiquette Dépenses Estimées dans la cellule F13. Les dépenses Estimées sont automatiquement calculées dans la cellule G13.","ESTIMÉ",{"$nulls":3},"ESTIMÉ",{"$f":"SUM(DétailsBudget[Coût prévu])","v":{"v":7915,"d":"7,915 $"}}]
["Entrez le Revenu 1 dans la cellule D14.",null,"Revenu 1",{"v":6000,"d":"6,000 $"},{"$nulls":6},"Cadeaux et association caritative",{"v":100,"d":"100 $"},{"v":125,"d":"125 $"},{"v":-25,"d":"-25 $ "}]
["Entrez le Revenu 2 dans la cellule D15.",null,"Revenu 2",{"v":1000,"d":"1,000 $"}]
["Entrez le Revenu Supplémentaire dans la cellule D16.",null,"Revenu supplémentaire",{"v":2500,"d":"2,500 $"},{"$nulls":6},"Enfants",{"v":140,"d":"140 $"},{"v":140,"d":"140 $"},{"v":0,"d":"0 $"}]
["L’étiquette Revenu Total des recettes la cellule C17 et celle des Revenus Totaux est automatiquement calculée dans la cellule D17. L’instruction suivante figure dans la cellule A20.",null,"Total des recettes",{"$f":"SUM(D14:D16)","v":{"v":9500,"d":"9,500 $"}}]
[{"$nulls":10},"Épargne ou investissements",{"v":200,"d":"200 $"},{"v":200,"d":"200 $"},{"v":0,"d":"0 $"}]
[]
["Le graphique en secteurs montrant le pourcentage des dépenses par catégorie figure dans la cellule droite.","Le graphique en secteurs montrant le pourcentage des dépenses par catégorie figure dans cette cellule.",{"$nulls":8},"Logement",{"v":2830,"d":"2,830 $"},{"v":2702,"d":"2,702 $"},{"v":128,"d":"128 $"}]
[]
[{"$nulls":10},"Loisirs",{"v":400,"d":"400 $"},{"v":358,"d":"358 $"},{"v":42,"d":"42 $"}]
[]
[{"$nulls":10},"Prêts",{"v":200,"d":"200 $"},{"v":200,"d":"200 $"},{"v":0,"d":"0 $"}]
[]
[{"$nulls":10},"Repas",{"v":1100,"d":"1,100 $"},{"v":1320,"d":"1,320 $"},{"v":-220,"d":"-220 $ "}]
[]
[{"$nulls":10},"Soins personnels",{"v":150,"d":"150 $"},{"v":140,"d":"140 $"},{"v":10,"d":"10 $"}]
[]
[{"$nulls":10},"Transport",{"v":1425,"d":"1,425 $"},{"v":1375,"d":"1,375 $"},{"v":50,"d":"50 $"}]
[]
[{"$nulls":10},"Taxes et impôts",{"v":300,"d":"300 $"},{"v":300,"d":"300 $"},{"v":0,"d":"0 $"}]
[]
[{"$nulls":10},"Total général",{"v":7915,"d":"7,915 $"},{"v":7860,"d":"7,860 $"},{"v":55,"d":"55 $"}]

{"sheet":"Dépenses mensuelles","index":2,"n_rows":62,"n_cols":7,"rows_kept":62,"merged":[[0,1,0,4],[0,5,0,6]]}
["Entrez vos dépenses mensuelles dans cette feuille de calcul. Le titre de cette feuille de calcul figure dans la cellule de droite. Sélectionnez la cellule F1 pour accéder à la feuille de calcul relative au Rapport sur le Budget Mensuel.","Dépenses mensuelles",{"$nulls":3},"Rapport sur le Budget Mensuel"]
[" Entrez des informations dans le tableau Détails Budget, à partir de la cellule de droite.","Description","Catégorie","Coût prévu","Coût réel","Écart","Vue d’ensemble des coûts réels"]
[null,"Autres expériences","Enfants",{"v":40,"d":"40 $"},{"v":40,"d":"40 $"},{"$f":"DétailsBudget[[#This Row],[Coût prévu]]-DétailsBudget[[#This Row],[Coût réel]]","v":{"v":0,"d":"0 $"}},{"$f":"DétailsBudget[[#This Row],[Coût réel]]","v":{"v":40,"d":"40 $"}}]
[null,"Frais médicaux","Enfants",null,null,{"$f":"DétailsBudget[[#This Row],[Coût prévu]]-DétailsBudget[[#This Row],[Coût réel]]","v":{"v":0,"d":"0 $"}},{"$f":"DétailsBudget[[#This Row],[Coût réel]]","v":{"v":0,"d":"0 $"}}]
[null,"Fournitures scolaires","Enfants",null,null,{"$f":"DétailsBudget[[#This Row],[Coût prévu]]-DétailsBudget[[#This Row],[Coût réel]]","v":{"v":0,"d":"0 $"}},{"$f":"DétailsBudget[[#This Row],[Coût réel]]","v":{"v":0,"d":"0 $"}}]
[null,"Frais de scolarité","Enfants",{"v":100,"d":"100 $"},{"v":100,"d":"100 $"},{"$f":"DétailsBudget[[#This Row],[Coût prévu]]-DétailsBudget[[#This Row],[Coût réel]]","v":{"v":0,"d":"0 $"}},{"$f":"DétailsBudget[[#This Row],[Coût réel]]","v":{"v":100,"d":"100 $"}}]
[null,"Concerts","Loisirs",{"v":50,"d":"50 $"},{"v":40,"d":"40 $"},{"$f":"DétailsBudget[[#This Row],[Coût prévu]]-DétailsBudget[[#This Row],[Coût réel]]","v":{"v":10,"d":"10 $"}},{"$f":"DétailsBudget[[#This Row],[Coût réel]]","v":{"v":40,"d":"40 $"}}]
[null,"Théâtre en direct","Loisirs",{"v":200,"d":"200 $"},{"v":150,"d":"150 $"},{"$f":"DétailsBudget[[#This Row],[Coût prévu]]-DétailsBudget[[#This Row],[Coût réel]]","v":{"v":50,"d":"50 $"}},{"$f":"DétailsBudget[[#This Row],[Coût réel]]","v":{"v":150,"d":"150 $"}}]
[null,"Cinéma","Loisirs",{"v":50,"d":"50 $"},{"v":28,"d":"28 $"},{"$f":"DétailsBudget[[#This Row],[Coût prévu]]-DétailsBudget[[#This Row],[Coût réel]]","v":{"v":22,"d":"22 $"}},{"$f":"DétailsBudget[[#This Row],[Coût réel]]","v":{"v":28,"d":"28 $"}}]
[null,"Musique (CD, téléchargements, etc.).","Loisirs",{"v":50,"d":"50 $"},{"v":30,"d":"30 $"},{"$f":"DétailsBudget[[#This Row],[Coût prévu]]-DétailsBudget[[#This Row],[Coût réel]]","v":{"v":20,"d":"20 $"}},{"$f":"DétailsBudget[[#This Row],[Coût réel]]","v":{"v":30,"d":"30 $"}}]
[null,"Événements sportifs","Loisirs",{"v":0,"d":"0 $"},{"v":40,"d":"40 $"},{"$f":"DétailsBudget[[#This Row],[Coût prévu]]-DétailsBudget[[#This Row],[Coût réel]]","v":{"v":-40,"d":"-40 $ "}},{"$f":"DétailsBudget[[#This Row],[Coût réel]]","v":{"v":40,"d":"40 $"}}]
[null,"Vidéo/DVD (achats)","Loisirs",{"v":20,"d":"20 $"},{"v":50,"d":"50 $"},{"$f":"DétailsBudget[[#This Row],[Coût prévu]]-DétailsBudget[[#This Row],[Coût réel]]","v":{"v":-30,"d":"-30 $ "}},{"$f":"DétailsBudget[[#This Row],[Coût réel]]","v":{"v":50,"d":"50 $"}}]
[null,"Location de vidéo/DVD","Loisirs",{"v":30,"d":"30 $"},{"v":20,"d":"20 $"},{"$f":"DétailsBudget[[#This Row],[Coût prévu]]-DétailsBudget[[#This Row],[Coût réel]]","v":{"v":10,"d":"10 $"}},{"$f":"DétailsBudget[[#This Row],[Coût réel]]","v":{"v":20,"d":"20 $"}}]
[null,"Restaurant","Repas",{"v":1000,"d":"1,000 $"},{"v":1200,"d":"1,200 $"},{"$f":"DétailsBudget[[#This Row],[Coût prévu]]-DétailsBudget[[#This Row],[Coût réel]]","v":{"v":-200,"d":"-200 $ "}},{"$f":"DétailsBudget[[#This Row],[Coût réel]]","v":{"v":1200,"d":"1,200 $"}}]
[null,"Provisions","Repas",{"v":100,"d":"100 $"},{"v":120,"d":"120 $"},{"$f":"DétailsBudget[[#This Row],[Coût prévu]]-DétailsBudget[[#This Row],[Coût réel]]","v":{"v":-20,"d":"-20 $ "}},{"$f":"DétailsBudget[[#This Row],[Coût réel]]","v":{"v":120,"d":"120 $"}}]
[null,"Association caritative 1","Cadeaux et association caritative",{"v":75,"d":"75 $"},{"v":100,"d":"100 $"},{"$f":"DétailsBudget[[#This Row],[Coût prévu]]-DétailsBudget[[#This Row],[Coût réel]]","v":{"v":-25,"d":"-25 $ "}},{"$f":"DétailsBudget[[#This Row],[Coût réel]]","v":{"v":100,"d":"100 $"}}]
[null,"Association caritative 2","Cadeaux et association caritative",{"v":25,"d":"25 $"},{"v":25,"d":"25 $"},{"$f":"DétailsBudget[[#This Row],[Coût prévu]]-DétailsBudget[[#This Row],[Coût réel]]","v":{"v":0,"d":"0 $"}},{"$f":"DétailsBudget[[#This Row],[Coût réel]]","v":{"v":25,"d":"25 $"}}]
[null,"Cadeau 1","Cadeaux et association caritative",null,null,{"$f":"DétailsBudget[[#This Row],[Coût prévu]]-DétailsBudget[[#This Row],[Coût réel]]","v":{"v":0,"d":"0 $"}},{"$f":"DétailsBudget[[#This Row],[Coût réel]]","v":{"v":0,"d":"0 $"}}]
[null,"Cadeau 2","Cadeaux et association caritative",null,null,{"$f":"DétailsBudget[[#This Row],[Coût prévu]]-DétailsBudget[[#This Row],[Coût réel]]","v":{"v":0,"d":"0 $"}},{"$f":"DétailsBudget[[#This Row],[Coût réel]]","v":{"v":0,"d":"0 $"}}]
[null,"Câble/satellite","Logement",{"v":100,"d":"100 $"},{"v":100,"d":"100 $"},{"$f":"DétailsBudget[[#This Row],[Coût prévu]]-DétailsBudget[[#This Row],[Coût réel]]","v":{"v":0,"d":"0 $"}},{"$f":"DétailsBudget[[#This Row],[Coût réel]]","v":{"v":100,"d":"100 $"}}]
[null,"Électricité","Logement",{"v":45,"d":"45 $"},{"v":50,"d":"50 $"},{"$f":"DétailsBudget[[#This Row],[Coût prévu]]-DétailsBudget[[#This Row],[Coût réel]]","v":{"v":-5,"d":"-5 $ "}},{"$f":"DétailsBudget[[#This Row],[Coût réel]]","v":{"v":50,"d":"50 $"}}]
[null,"Essence","Logement",{"v":300,"d":"300 $"},{"v":400,"d":"400 $"},{"$f":"DétailsBudget[[#This Row],[Coût prévu]]-DétailsBudget[[#This Row],[Coût réel]]","v":{"v":-100,"d":"-100 $ "}},{"$f":"DétailsBudget[[#This Row],[Coût réel]]","v":{"v":400,"d":"400 $"}}]
[null,"Services de nettoyage","Logement",{"v":200,"d":"200 $"},null,{"$f":"DétailsBudget[[#This Row],[Coût prévu]]-DétailsBudget[[#This Row],[Coût réel]]","v":{"v":200,"d":"200 $"}},{"$f":"DétailsBudget[[#This Row],[Coût réel]]","v":{"v":0,"d":"0 $"}}]
[null,"Entretien","Logement",{"v":200,"d":"200 $"},{"v":150,"d":"150 $"},{"$f":"DétailsBudget[[#This Row],[Coût prévu]]-DétailsBudget[[#This Row],[Coût réel]]","v":{"v":50,"d":"50 $"}},{"$f":"DétailsBudget[[#This Row],[Coût réel]]","v":{"v":150,"d":"150 $"}}]
[null,"Emprunt ou loyer","Logement",{"v":1700,"d":"1,700 $"},{"v":1700,"d":"1,700 $"},{"$f":"DétailsBudget[[#This Row],[Coût prévu]]-DétailsBudget[[#This Row],[Coût réel]]","v":{"v":0,"d":"0 $"}},{"$f":"DétailsBudget[[#This Row],[Coût réel]]","v":{"v":1700,"d":"1,700 $"}}]
[null,"Importations de pétrole/gaz naturel","Logement",null,null,{"$f":"DétailsBudget[[#This Row],[Coût prévu]]-DétailsBudget[[#This Row],[Coût réel]]","v":{"v":0,"d":"0 $"}},{"$f":"DétailsBudget[[#This Row],[Coût réel]]","v":{"v":0,"d":"0 $"}}]
[null,"Offre Internet","Logement",{"v":100,"d":"100 $"},{"v":100,"d":"100 $"},{"$f":"DétailsBudget[[#This Row],[Coût prévu]]-DétailsBudget[[#This Row],[Coût réel]]","v":{"v":0,"d":"0 $"}},{"$f":"DétailsBudget[[#This Row],[Coût réel]]","v":{"v":100,"d":"100 $"}}]
[null,"Téléphone (cellulaire)","Logement",{"v":60,"d":"60 $"},{"v":60,"d":"60 $"},{"$f":"DétailsBudget[[#This Row],[Coût prévu]]-DétailsBudget[[#This Row],[Coût réel]]","v":{"v":0,"d":"0 $"}},{"$f":"DétailsBudget[[#This Row],[Coût réel]]","v":{"v":60,"d":"60 $"}}]
[null,"Téléphone (domicile)","Logement",{"v":35,"d":"35 $"},{"v":39,"d":"39 $"},{"$f":"DétailsBudget[[#This Row],[Coût prévu]]-DétailsBudget[[#This Row],[Coût réel]]","v":{"v":-4,"d":"-4 $ "}},{"$f":"DétailsBudget[[#This Row],[Coût réel]]","v":{"v":39,"d":"39 $"}}]
[null,"Stocks","Logement",{"v":40,"d":"40 $"},{"v":55,"d":"55 $"},{"$f":"DétailsBudget[[#This Row],[Coût prévu]]-DétailsBudget[[#This Row],[Coût réel]]","v":{"v":-15,"d":"-15 $ "}},{"$f":"DétailsBudget[[#This Row],[Coût réel]]","v":{"v":55,"d":"55 $"}}]
[null,"Corbeille et élimination des déchets","Logement",{"v":25,"d":"25 $"},{"v":22,"d":"22 $"},{"$f":"DétailsBudget[[#This Row],[Coût prévu]]-DétailsBudget[[#This Row],[Coût réel]]","v":{"v":3,"d":"3 $"}},{"$f":"DétailsBudget[[#This Row],[Coût réel]]","v":{"v":22,"d":"22 $"}}]
[null,"Eau et assainissement","Logement",{"v":25,"d":"25 $"},{"v":26,"d":"26 $"},{"$f":"DétailsBudget[[#This Row],[Coût prévu]]-DétailsBudget[[#This Row],[Coût réel]]","v":{"v":-1,"d":"-1 $ "}},{"$f":"DétailsBudget[[#This Row],[Coût réel]]","v":{"v":26,"d":"26 $"}}]
[null,"Santé","Assurance",{"v":400,"d":"400 $"},{"v":400,"d":"400 $"},{"$f":"DétailsBudget[[#This Row],[Coût prévu]]-DétailsBudget[[#This Row],[Coût réel]]","v":{"v":0,"d":"0 $"}},{"$f":"DétailsBudget[[#This Row],[Coût réel]]","v":{"v":400,"d":"400 $"}}]
[null,"Maison","Assurance",{"v":400,"d":"400 $"},{"v":400,"d":"400 $"},{"$f":"DétailsBudget[[#This Row],[Coût prévu]]-DétailsBudget[[#This Row],[Coût réel]]","v":{"v":0,"d":"0 $"}},{"$f":"DétailsBudget[[#This Row],[Coût réel]]","v":{"v":400,"d":"400 $"}}]
[null,"Vie","Assurance",{"v":100,"d":"100 $"},{"v":100,"d":"100 $"},{"$f":"DétailsBudget[[#This Row],[Coût prévu]]-DétailsBudget[[#This Row],[Coût réel]]","v":{"v":0,"d":"0 $"}},{"$f":"DétailsBudget[[#This Row],[Coût réel]]","v":{"v":100,"d":"100 $"}}]
[null,"Carte de crédit 1","Prêts",{"v":200,"d":"200 $"},{"v":200,"d":"200 $"},{"$f":"DétailsBudget[[#This Row],[Coût prévu]]-DétailsBudget[[#This Row],[Coût réel]]","v":{"v":0,"d":"0 $"}},{"$f":"DétailsBudget[[#This Row],[Coût réel]]","v":{"v":200,"d":"200 $"}}]
[null,"Carte de crédit 2","Prêts",null,null,{"$f":"DétailsBudget[[#This Row],[Coût prévu]]-DétailsBudget[[#This Row],[Coût réel]]","v":{"v":0,"d":"0 $"}},{"$f":"DétailsBudget[[#This Row],[Coût réel]]","v":{"v":0,"d":"0 $"}}]
[null,"Carte de crédit 3","Prêts",null,null,{"$f":"DétailsBudget[[#This Row],[Coût prévu]]-DétailsBudget[[#This Row],[Coût réel]]","v":{"v":0,"d":"0 $"}},{"$f":"DétailsBudget[[#This Row],[Coût réel]]","v":{"v":0,"d":"0 $"}}]
[null,"Personnels","Prêts",null,null,{"$f":"DétailsBudget[[#This Row],[Coût prévu]]-DétailsBudget[[#This Row],[Coût réel]]","v":{"v":0,"d":"0 $"}},{"$f":"DétailsBudget[[#This Row],[Coût réel]]","v":{"v":0,"d":"0 $"}}]
[null,"Étudiants","Prêts",null,null,{"$f":"DétailsBudget[[#This Row],[Coût prévu]]-DétailsBudget[[#This Row],[Coût réel]]","v":{"v":0,"d":"0 $"}},{"$f":"DétailsBudget[[#This Row],[Coût réel]]","v":{"v":0,"d":"0 $"}}]
[null,"Habillement","Soins personnels",{"v":150,"d":"150 $"},{"v":140,"d":"140 $"},{"$f":"DétailsBudget[[#This Row],[Coût prévu]]-DétailsBudget[[#This Row],[Coût réel]]","v":{"v":10,"d":"10 $"}},{"$f":"DétailsBudget[[#This Row],[Coût réel]]","v":{"v":140,"d":"140 $"}}]
[null,"Nettoyage à sec","Soins personnels",null,null,{"$f":"DétailsBudget[[#This Row],[Coût prévu]]-DétailsBudget[[#This Row],[Coût réel]]","v":{"v":0,"d":"0 $"}},{"$f":"DétailsBudget[[#This Row],[Coût réel]]","v":{"v":0,"d":"0 $"}}]
[null,"Coiffeur/manucure","Soins personnels",null,null,{"$f":"DétailsBudget[[#This Row],[Coût prévu]]-DétailsBudget[[#This Row],[Coût réel]]","v":{"v":0,"d":"0 $"}},{"$f":"DétailsBudget[[#This Row],[Coût réel]]","v":{"v":0,"d":"0 $"}}]
[null,"Club de sport","Soins personnels",null,null,{"$f":"DétailsBudget[[#This Row],[Coût prévu]]-DétailsBudget[[#This Row],[Coût réel]]","v":{"v":0,"d":"0 $"}},{"$f":"DétailsBudget[[#This Row],[Coût réel]]","v":{"v":0,"d":"0 $"}}]
[null,"Frais médicaux","Soins personnels",null,null,{"$f":"DétailsBudget[[#This Row],[Coût prévu]]-DétailsBudget[[#This Row],[Coût réel]]","v":{"v":0,"d":"0 $"}},{"$f":"DétailsBudget[[#This Row],[Coût réel]]","v":{"v":0,"d":"0 $"}}]
[null,"Repas","Animaux",{"v":150,"d":"150 $"},{"v":75,"d":"75 $"},{"$f":"DétailsBudget[[#This Row],[Coût prévu]]-DétailsBudget[[#This Row],[Coût réel]]","v":{"v":75,"d":"75 $"}},{"$f":"DétailsBudget[[#This Row],[Coût réel]]","v":{"v":75,"d":"75 $"}}]
[null,"Articles de toilette","Animaux",{"v":20,"d":"20 $"},{"v":25,"d":"25 $"},{"$f":"DétailsBudget[[#This Row],[Coût prévu]]-DétailsBudget[[#This Row],[Coût réel]]","v":{"v":-5,"d":"-5 $ "}},{"$f":"DétailsBudget[[#This Row],[Coût réel]]","v":{"v":25,"d":"25 $"}}]
[null,"Frais médicaux","Animaux",null,null,{"$f":"DétailsBudget[[#This Row],[Coût prévu]]-DétailsBudget[[#This Row],[Coût réel]]","v":{"v":0,"d":"0 $"}},{"$f":"DétailsBudget[[#This Row],[Coût réel]]","v":{"v":0,"d":"0 $"}}]
[null,"Jouets","Animaux",null,null,{"$f":"DétailsBudget[[#This Row],[Coût prévu]]-DétailsBudget[[#This Row],[Coût réel]]","v":{"v":0,"d":"0 $"}},{"$f":"DétailsBudget[[#This Row],[Coût réel]]","v":{"v":0,"d":"0 $"}}]
[null,"Compte d’investissement","Épargne ou investissements",{"v":200,"d":"200 $"},{"v":200,"d":"200 $"},{"$f":"DétailsBudget[[#This Row],[Coût prévu]]-DétailsBudget[[#This Row],[Coût réel]]","v":{"v":0,"d":"0 $"}},{"$f":"DétailsBudget[[#This Row],[Coût réel]]","v":{"v":200,"d":"200 $"}}]
[null,"Compte d’épargne retraite","Épargne ou investissements",null,null,{"$f":"DétailsBudget[[#This Row],[Coût prévu]]-DétailsBudget[[#This Row],[Coût réel]]","v":{"v":0,"d":"0 $"}},{"$f":"DétailsBudget[[#This Row],[Coût réel]]","v":{"v":0,"d":"0 $"}}]
[null,"Fédéraux","Taxes et impôts",{"v":300,"d":"300 $"},{"v":300,"d":"300 $"},{"$f":"DétailsBudget[[#This Row],[Coût prévu]]-DétailsBudget[[#This Row],[Coût réel]]","v":{"v":0,"d":"0 $"}},{"$f":"DétailsBudget[[#This Row],[Coût réel]]","v":{"v":300,"d":"300 $"}}]
[null,"Locaux","Taxes et impôts",null,null,{"$f":"DétailsBudget[[#This Row],[Coût prévu]]-DétailsBudget[[#This Row],[Coût réel]]","v":{"v":0,"d":"0 $"}},{"$f":"DétailsBudget[[#This Row],[Coût réel]]","v":{"v":0,"d":"0 $"}}]
[null,"Régionaux","Taxes et impôts",null,null,{"$f":"DétailsBudget[[#This Row],[Coût prévu]]-DétailsBudget[[#This Row],[Coût réel]]","v":{"v":0,"d":"0 $"}},{"$f":"DétailsBudget[[#This Row],[Coût réel]]","v":{"v":0,"d":"0 $"}}]
[null,"Bus/taxi","Transport",{"v":100,"d":"100 $"},{"v":150,"d":"150 $"},{"$f":"DétailsBudget[[#This Row],[Coût prévu]]-DétailsBudget[[#This Row],[Coût réel]]","v":{"v":-50,"d":"-50 $ "}},{"$f":"DétailsBudget[[#This Row],[Coût réel]]","v":{"v":150,"d":"150 $"}}]
[null,"Carburant","Transport",{"v":450,"d":"450 $"},{"v":400,"d":"400 $"},{"$f":"DétailsBudget[[#This Row],[Coût prévu]]-DétailsBudget[[#This Row],[Coût réel]]","v":{"v":50,"d":"50 $"}},{"$f":"DétailsBudget[[#This Row],[Coût réel]]","v":{"v":400,"d":"400 $"}}]
[null,"Assurance","Transport",{"v":300,"d":"300 $"},{"v":300,"d":"300 $"},{"$f":"DétailsBudget[[#This Row],[Coût prévu]]-DétailsBudget[[#This Row],[Coût réel]]","v":{"v":0,"d":"0 $"}},{"$f":"DétailsBudget[[#This Row],[Coût réel]]","v":{"v":300,"d":"300 $"}}]
[null,"Autorisation ","Transport",{"v":25,"d":"25 $"},{"v":25,"d":"25 $"},{"$f":"DétailsBudget[[#This Row],[Coût prévu]]-DétailsBudget[[#This Row],[Coût réel]]","v":{"v":0,"d":"0 $"}},{"$f":"DétailsBudget[[#This Row],[Coût réel]]","v":{"v":25,"d":"25 $"}}]
[null,"Entretien","Transport",{"v":100,"d":"100 $"},{"v":50,"d":"50 $"},{"$f":"DétailsBudget[[#This Row],[Coût prévu]]-DétailsBudget[[#This Row],[Coût réel]]","v":{"v":50,"d":"50 $"}},{"$f":"DétailsBudget[[#This Row],[Coût réel]]","v":{"v":50,"d":"50 $"}}]
[null,"Parking frais","Transport",null,null,{"$f":"DétailsBudget[[#This Row],[Coût prévu]]-DétailsBudget[[#This Row],[Coût réel]]","v":{"v":0,"d":"0 $"}},{"$f":"DétailsBudget[[#This Row],[Coût réel]]","v":{"v":0,"d":"0 $"}}]
[null,"Paiement véhicule","Transport",{"v":450,"d":"450 $"},{"v":450,"d":"450 $"},{"$f":"DétailsBudget[[#This Row],[Coût prévu]]-DétailsBudget[[#This Row],[Coût réel]]","v":{"v":0,"d":"0 $"}},{"$f":"DétailsBudget[[#This Row],[Coût réel]]","v":{"v":450,"d":"450 $"}}]
[null,"Total",null,{"$f":"SUBTOTAL(109,DétailsBudget[Coût prévu])","v":{"v":7915,"d":"7,915 $"}},{"$f":"SUBTOTAL(109,DétailsBudget[Coût réel])","v":{"v":7860,"d":"7,860 $"}},{"$f":"SUBTOTAL(109,DétailsBudget[Écart])","v":{"v":55,"d":"55 $"}}]

{"sheet":"Données supplémentaires","index":3,"n_rows":15,"n_cols":5,"rows_kept":15}
["Modifiez ou entrez des catégories dans ce tableau pour mettre à jour la liste déroulante de la colonne Catégories dans le tableau Détails Budget de la feuille de calcul Dépenses Mensuelles. Pour ce faire, modifier ou entrez la nouvelle catégorie dans le tableau de recherche concernant la Catégorie Recherche Budgétaire dans la cellule E2. Le tableau croisé dynamique lié au graphique vue d’ensemble du Budget dans la feuille de calcul rapport Budget mensuel commence dans la cellule B2.","Tableau croisé dynamique pour graphique de vue d’ensemble du Budget",null,null,"Liste de recherche de catégorie relative aux détails du Budget"]
[null,"Catégorie","Coût réel ",null,"Catégorie Recherche Budgétaire"]
[null,"Animaux",{"v":100,"d":"$100.00"},null,"Enfants"]
[null,"Assurance",{"v":900,"d":"$900.00"},null,"Loisirs"]
[null,"Cadeaux et association caritative",{"v":125,"d":"$125.00"},null,"Repas"]
[null,"Enfants",{"v":140,"d":"$140.00"},null,"Cadeaux et association caritative"]
[null,"Épargne ou investissements",{"v":200,"d":"$200.00"},null,"Logement"]
[null,"Logement",{"v":2702,"d":"$2,702.00"},null,"Assurance"]
[null,"Loisirs",{"v":358,"d":"$358.00"},null,"Prêts"]
[null,"Prêts",{"v":200,"d":"$200.00"},null,"Soins personnels"]
[null,"Repas",{"v":1320,"d":"$1,320.00"},null,"Animaux"]
[null,"Soins personnels",{"v":140,"d":"$140.00"},null,"Épargne ou investissements"]
[null,"Taxes et impôts",{"v":300,"d":"$300.00"},null,"Taxes et impôts"]
[null,"Transport",{"v":1375,"d":"$1,375.00"},null,"Transport"]
[null,"Total général",{"v":7860,"d":"$7,860.00"}]